Cogmind - Beta 9.1 @@@ ROGUE MODE // 2019.11.06 @ 12:11:19 Player: Alexbot Result: Destroyed by 8R-AWN with 8R-AWN's Boregun Performance ------------- Evolutions (1) 500 Regions Visited (5) 1000 Robots Destroyed (42) 210 Value Destroyed (755) 755 Prototype IDs (33) 660 Alien Tech Used (0) 0 Bonus (300) 300 TOTAL SCORE: 3425 Bonus ------- Aligned with FarCom 300 Cogmind --------- Core Integrity 0/400 Matter 147/300 Energy 76/100 System Corruption 5% Temperature Cool (0) Location -9/Exiles Parts ------- Power (1) Propulsion (2) Potential Leg Potential Leg Utility (3) Heat Sink Large Storage Unit High-capacity Storage Unit Weapon (3) Improved Light Cannon Gauss Cannon Inventory (18) Wheel Wheel Armored Huge Wheel Large Matter Pod (109) Medium Armor Plating Medium Armor Plating Improved Shield Generator Improved Trap Extractor Proton Missile Launcher Heavy Missile Launcher Remote Datajack Spear Peak State ------------ Power Light Nuclear Core Propulsion Potential Leg Potential Leg Utility Heat Sink Large Storage Unit High-capacity Storage Unit Weapon YOLO Cannon Remote Datajack Inventory Light Ion Engine Light Ion Engine Wheel Wheel Armored Huge Wheel Large Matter Pod Medium Armor Plating Medium Armor Plating Improved Shield Generator Improved Trap Extractor Improved Light Cannon Gauss Cannon Proton Missile Launcher Heavy Missile Launcher Spear [Rating: 54] Favorites ----------- Power Light Nuclear Core Engine Ion Engine Power Core Light Nuclear Core Propulsion Light Treads Treads Light Treads Leg Potential Leg Wheel Compact Wheel Utility High-capacity Storage Unit Device Heat Sink Storage High-capacity Storage Unit Processor Improved Signal Interpreter Weapon Improved Light Cannon Energy Gun Improved Medium Laser Energy Cannon Beam Cannon Ballistic Gun Light Assault Rifle Ballistic Cannon Improved Light Cannon Special Weapon Remote Datajack Build | -11 -10 -10 -9 -9 -9 ------- Run | Scr Mat Min Mat Min Exi Slots Evolved 2 | . . . 2 . . Power . | . . . . . . Propulsion . | . . . . . . Utility 1 | . . . 1 . . Weapon 1 | . . . 1 . . Parts Attached 46 | 6 6 4 6 16 8 Power 7 | 1 1 . 1 2 2 Engine 6 | 1 1 . 1 1 2 Core 1 | . . . . 1 . Reactor . | . . . . . . Propulsion 9 | 2 . 2 . 3 2 Treads 2 | . . 2 . . . Leg 2 | . . . . . 2 Wheel 5 | 2 . . . 3 . Hover . | . . . . . . Flight . | . . . . . . Utility 7 | 1 1 1 3 1 . Device 2 | . . . 1 1 . Storage 3 | 1 1 1 . . . Processor 2 | . . . 2 . . Hackware . | . . . . . . Protection . | . . . . . . Artifact . | . . . . . . Weapon 23 | 2 4 1 2 10 4 Energy Gun 6 | 1 . . 2 3 . Energy Cannon 2 | . . 1 . . 1 Ballistic Gun 4 | 1 1 . . 2 . Ballistic Cannon 9 | . 3 . . 4 2 Launcher . | . . . . . . Special Weapon 2 | . . . . 1 1 Impact Weapon . | . . . . . . Slashing Weapon . | . . . . . . Piercing Weapon . | . . . . . . Special Melee Weapon . | . . . . . . Unidentified Prototypes 1 | . . . 1 . . Parts Lost 19 | . 1 2 3 9 4 Power 4 | . . . 1 . 3 Propulsion 5 | . . 2 . 3 . Utility . | . . . . . . Weapon 10 | . 1 . 2 6 1 Highest Loss Streak 4 | . 1 2 1 4 4 Average Slot Usage (%) 94 | . 85 100 87 94 96 Engine 7 | . 12 14 10 4 . Core 4 | . . . . 6 9 Treads 8 | . . 17 22 3 . Leg 1 | . . . . . 13 Wheel 12 | . 28 10 . 17 8 Device 4 | . . . 2 7 11 Storage 22 | . 16 28 22 22 22 Processor 2 | . . . 4 3 . Energy Gun 6 | . 1 . 8 12 . Energy Cannon 1 | . . 2 6 . . Ballistic Gun 5 | . 7 . . 12 . Ballistic Cannon 12 | . 17 25 11 3 20 Special Weapon 1 | . . . . . 9 Naked Turns . | . . . . . . Heaviest Build 73 | 11 49 61 63 62 73 Greatest Support 60 | 32 32 40 40 26 60 Greatest Overweight (x) 5 | . 1 1 1 5 2 Average Overweight (x) 1 | . . 1 1 2 1 Largest Inventory Capacity 18 | 6 14 18 18 18 18 Average Capacity 16 | 5 7 16 18 18 18 Most Carried 18 | 4 6 6 10 18 18 Average Carried 9 | 1 5 4 7 10 16 Final Capacity 18 | 6 14 18 18 18 18 Final Carried 18 | 4 5 6 10 18 13 Class Distribution -------------------- 47% | Mutant 27% | Scavenger-Gunner 18% | Scavenger-Mutant 5% | Skirmisher Dominant Class ---------------- Mutant | -10/Materials Mutant | -10/Mines Mutant | -9/Materials Scavenger-Gunner | -9/Mines Mutant | -9/Exiles Resources | -11 -10 -10 -9 -9 -9 ----------- Run | Scr Mat Min Mat Min Exi Matter Collected 1097 | 165 108 181 216 427 . Remotely . | . . . . . . Salvage Created 1012 | . 174 111 231 462 34 Parts 57 | . 15 9 11 22 . Haulers Intercepted 1 | . . . 1 . . Recyclers Shooed 1 | . 1 . . . . Parts Field Recycled . | . . . . . . Retrieved Matter . | . . . . . . Parts Self-Destructed . | . . . . . . Prevented . | . . . . . . Kills | -11 -10 -10 -9 -9 -9 ------- Run | Scr Mat Min Mat Min Exi Combat Hostiles Destroyed 32 | . 8 2 6 10 6 Guns 13 | . 2 . 3 8 . Cannons 15 | . 6 2 3 2 2 AOE 4 | . . . . . 4 Classes Destroyed 9 | . 3 2 2 2 . Worker 5 | . . 3 . 2 . Tunneler 1 | . . 1 . . . Hauler 1 | . . . 1 . . Recycler 2 | . . . . 2 . Operator 1 | . 1 . . . . Swarmer 10 | . 3 . 3 4 . Grunt 11 | . 5 2 1 3 . Sentry 4 | . . . 2 2 . Assembled 7 | . . . . 1 6 Best Kill Streak 5 | . 4 2 4 4 5 Combat Bots Only 5 | . 3 1 4 4 5 Max Kills in Single Turn 4 | . 2 1 1 1 4 Gunslinging . | . . . . . . Exploded 4 | . . . . . 4 Melee . | . . . . . . Uniques/NPCs Destroyed . | . . . . . . Combat | -11 -10 -10 -9 -9 -9 -------- Run | Scr Mat Min Mat Min Exi Damage Taken 2545 | . 284 96 541 683 941 Core 436 | . 36 . 105 130 165 Absorbed by Shields . | . . . . . . Core Remaining (%) 92 | 100 . 85 . . . Volleys Fired 106 | . 25 17 19 32 13 Largest 3 | . 2 2 3 3 2 Hottest 155 | . 78 99 155 135 100 Shots Fired 235 | . 49 34 52 81 19 Gun 100 | . 16 . 17 67 . Cannon 132 | . 33 34 35 14 16 Launcher . | . . . . . . Special 3 | . . . . . 3 Kinetic 159 | . 49 27 19 53 11 Thermal 73 | . . 7 33 28 5 Explosive . | . . . . . . Electromagnetic . | . . . . . . Robot Hit Streak 12 | . 10 12 10 7 5 Robot Miss Streak 10 | . 3 1 10 4 4 Penetration Max 1 | . . . . . 1 Secondary Targets 3 | . . . . 3 . Max Gunslinging Chain 1 | . . . . 1 . Shots Hit Robots 138 | . 32 26 28 44 8 Core Hits 58 | . 14 7 9 20 8 Critical Hits 2 | . . . . . 2 Critical Kills . | . . . . . . Critical Parts Destroyed 1 | . . . . . 1 Melee Attacks . | . . . . . . Impact . | . . . . . . Slashing . | . . . . . . Piercing . | . . . . . . Sneak Attacks . | . . . . . . Combat Hostiles . | . . . . . . Follow-up Attacks . | . . . . . . Damage Inflicted 2873 | . 460 455 462 734 762 Guns 749 | . 88 . 137 524 . Cannons 1672 | . 372 455 320 210 315 Explosions 447 | . . . . . 447 Melee . | . . . . . . Ramming 5 | . . . 5 . . Kinetic 1581 | . 460 333 181 439 168 Thermal 1287 | . . 122 276 295 594 Explosive . | . . . . . . Electromagnetic . | . . . . . . Impact . | . . . . . . Slashing . | . . . . . . Piercing . | . . . . . . Highest Corruption 5 | . . . . 5 5 Average Corruption 4 | . . . . 4 5 Corruption Purged . | . . . . . . Effects 27 | . . . . 17 10 Message Errors 9 | . . . . 6 3 Matter Fused 5 | . . . . 2 3 Heat Flow Errors 3 | . . . . 2 1 Energy Discharges 2 | . . . . 1 1 Data Loss (minor) 3 | . . . . 3 . Data Loss (major) 2 | . . . . 1 1 Misfires 1 | . . . . . 1 Targeting Errors 2 | . . . . 2 . Overload Shots . | . . . . . . Overflow Damage 69 | . 2 17 5 . 45 Projectiles 24 | . 2 17 5 . . Explosions 45 | . . . . . 45 Melee . | . . . . . . Knockbacks 7 | . 2 2 2 . 1 Impact . | . . . . . . Kinetic 7 | . 2 2 2 . 1 Secondary . | . . . . . . Self-Inflicted Damage 75 | . . . . . 75 Shots 1 | . . . . . 1 Rammed 1 | . . . 1 . . Targets Rammed 1 | . . . 1 . . Kicked . | . . . . . . Crushed . | . . . . . . Highest Temperature 352 | . 90 99 352 307 173 Average Temperature 83 | . 24 32 133 104 49 Received Heat Transfer 503 | . 99 57 99 168 80 Effects 1 | . . . 1 . . Short Circuit 1 | . . . 1 . . Siege Activations . | . . . . . . Robots Corrupted . | . . . . . . Combat Hostiles . | . . . . . . Parts Fried . | . . . . . . Impact Corruptions . | . . . . . . Robots Melted . | . . . . . . Combat Hostiles . | . . . . . . Parts Melted 3 | . . . 1 2 . Heat Transferred 2097 | . . 259 592 666 580 Parts Sabotaged . | . . . . . . Parts Stolen . | . . . . . . Parts Stripped . | . . . . . . Power Chain Reactions . | . . . . . . Missiles Intercepted . | . . . . . . Alert | -11 -10 -10 -9 -9 -9 ------- Run | Scr Mat Min Mat Min Exi Peak Influence 230 | . 230 134 174 158 . Average Influence 76 | . 93 63 87 79 . Maximum Alert Level 1 | . 1 . . . . Low Security (%) 99 | . . . . . . Level 1 . | . . . . . . Level 2 . | . . . . . . Level 3 . | . . . . . . Level 4 . | . . . . . . Level 5 . | . . . . . . High Security . | . . . . . . Max Security . | . . . . . . Squads Dispatched 3 | . 2 . 1 . . Investigation . | . . . . . . Extermination . | . . . . . . Reinforcement 3 | . 2 . 1 . . Assault . | . . . . . . Garrison . | . . . . . . Intercept . | . . . . . . Construction Impeded . | . . . . . . Haulers Reinforced . | . . . . . . Stealth | -11 -10 -10 -9 -9 -9 --------- Run | Scr Mat Min Mat Min Exi Distress Signals 4 | . 2 . 2 . . Communications Jammed . | . . . . . . Distress Signals . | . . . . . . Times Spotted 55 | . 15 3 15 13 9 Peak Tracking Total 8 | . 3 2 6 4 8 Tactical Retreats 5 | . 2 1 1 1 . Traps | -11 -10 -10 -9 -9 -9 ------- Run | Scr Mat Min Mat Min Exi Traps Triggered 2 | . 1 . . 1 . Indirectly . | . . . . . . Trap Hack Attempts . | . . . . . . Triggered . | . . . . . . Disarmed . | . . . . . . Reprogrammed . | . . . . . . Reused . | . . . . . . Traps Extracted . | . . . . . . Installed . | . . . . . . Triggered . | . . . . . . Machines | -11 -10 -10 -9 -9 -9 ---------- Run | Scr Mat Min Mat Min Exi Machines Disabled 6 | . 1 . 1 . 4 Max in Single Turn 2 | . 1 . 1 . 2 Machines Sabotaged . | . . . . . . Garrisons Compromised . | . . . . . . Overloaded Fab Kills . | . . . . . . Fab Network Shutdowns . | . . . . . . Hacking | -11 -10 -10 -9 -9 -9 --------- Run | Scr Mat Min Mat Min Exi Machines Accessed 2 | . . . . 1 1 Terminals . | . . . . . . Fabricators . | . . . . . . Repair Stations . | . . . . . . Recycling Units . | . . . . . . Scanalyzers . | . . . . . . Garrison Access . | . . . . . . Total Hacks 2 | . . . . 1 1 Successful 2 | . . . . 1 1 Failed . | . . . . . . Catastrophic . | . . . . . . Database Lockouts . | . . . . . . Manual 1 | . . . . . 1 Terminals . | . . . . . . Fabricators . | . . . . . . Repair Stations . | . . . . . . Recycling Units . | . . . . . . Scanalyzers . | . . . . . . Garrison Access . | . . . . . . Terminal Hacks 2 | . . . . 1 1 Open Door 1 | . . . . 1 . EX-Prototype ID Bank 1 | . . . . . 1 Fabricator Hacks . | . . . . . . Repair Station Hacks . | . . . . . . Recycling Unit Hacks . | . . . . . . Scanalyzer . | . . . . . . Garrison Access Hacks . | . . . . . . Unauthorized Hacks . | . . . . . . Terminals . | . . . . . . Fabricators . | . . . . . . Repair Stations . | . . . . . . Recycling Units . | . . . . . . Scanalyzers . | . . . . . . Garrison Access . | . . . . . . Data Cores Recovered . | . . . . . . Used . | . . . . . . Hacking Detections . | . . . . . . Full Trace Events . | . . . . . . Feedback Events . | . . . . . . Feedback Blocked . | . . . . . . Robot Schematics Acquired . | . . . . . . Robots Built . | . . . . . . Matter . | . . . . . . Time . | . . . . . . Total Robot Build Rating . | . . . . . . Part Schematics Acquired . | . . . . . . Parts Built . | . . . . . . Matter . | . . . . . . Time . | . . . . . . Total Part Build Rating . | . . . . . . Parts Repaired . | . . . . . . Time . | . . . . . . Parts Recycled . | . . . . . . Recycled Matter . | . . . . . . Retrieved Matter . | . . . . . . Retrieved Components . | . . . . . . Parts Scanalyzed . | . . . . . . Part Schematics Acquired . | . . . . . . Parts Damaged . | . . . . . . Bothacking | -11 -10 -10 -9 -9 -9 ------------ Run | Scr Mat Min Mat Min Exi Used RIF Installer . | . . . . . . Robots Hacked 3 | . . . . . 3 Non-combat 1 | . . . . . 1 Combat 2 | . . . . . 2 Robot Hacks Applied 3 | . . . . . 3 parse_system 3 | . . . . . 3 Relay Couplers Released . | . . . . . . Robots Rewired . | . . . . . . Allies Hacked . | . . . . . . Hacks Repelled . | . . . . . . Allies | -11 -10 -10 -9 -9 -9 -------- Run | Scr Mat Min Mat Min Exi Total Allies . | . . . . . . Largest Group . | . . . . . . Highest-Rated Group . | . . . . . . Highest-Rated Ally . | . . . . . . Total Orders . | . . . . . . Ally Attacks . | . . . . . . Total Damage . | . . . . . . Kills . | . . . . . . Allies Corrupted . | . . . . . . Allies Melted . | . . . . . . Intel | -11 -10 -10 -9 -9 -9 ------- Run | Scr Mat Min Mat Min Exi Robot Analysis Total . | . . . . . . Derelict Logs Recovered 2 | . . 1 . 1 . Drone Launches . | . . . . . . Drone Recoveries . | . . . . . . Exploration | -11 -10 -10 -9 -9 -9 ------------- Run | Scr Mat Min Mat Min Exi Turns Passed 2910 | 42 224 640 393 1206 405 Spaces Moved 1772 | 31 126 400 175 755 285 Core 2 | 2 . . . . . Treads 565 | . . 196 175 194 . Legs 152 | . . . . . 152 Wheels 1053 | 29 126 204 . 561 133 Hover . | . . . . . . Flight . | . . . . . . Fastest Speed 50 | 50 100 110 180 100 110 Average Speed 135 | 96 102 144 180 133 120 Slowest Speed 200 | 100 110 180 180 200 170 Overloaded Moves . | . . . . . . Propulsion Burnouts . | . . . . . . Robots Hopped . | . . . . . . Cave-ins Triggered . | . . . . . . Exploration Rate (%) 44 | 3 25 68 14 96 60 Regions Visited 5 Branch Regions 3 Pre-discovered Areas 2 | . . . . 2 . Known Exits Taken 1 | . . . 1 . . Unknown Exits Taken 4 | 1 1 1 . 1 . Scrap Searched 3 | . . 1 . 2 . Spaces Dug . | . . . . . . Terrain Destroyed 30 | . 1 1 . . 28 Melee . | . . . . . . Projectile 8 | . 1 1 . . 6 AOE 22 | . . . . . 22 Actions | -11 -10 -10 -9 -9 -9 --------- Run | Scr Mat Min Mat Min Exi Total 2068 | 40 174 428 210 893 323 Wait 96 | . 12 6 2 69 7 Move 1767 | 30 125 399 174 754 285 Hop . | . . . . . . Pick Up 33 | 4 4 2 5 17 1 Fast Attach 19 | 6 4 . 4 3 2 Attach 21 | . 2 2 1 11 5 Detach 7 | . . . 2 3 2 Swap 6 | . . 2 1 2 1 Drop 10 | . 2 . 1 2 5 Fire 106 | . 25 17 19 32 13 Melee . | . . . . . . Ram . | . . . . . . Kick . | . . . . . . Crush 1 | . . . 1 . . Escape Stasis . | . . . . . . Rewire 2 | . . . . . 2 Trap . | . . . . . . Miscellaneous . | . . . . . . Route ------- -11/Scrapyard -10/Materials -10/Mines -9/Materials (discovered 2 exits: *Min / *Sto) -9/Mines (discovered 4 exits: *Mat x2 / *Exi / *Zio) -9/Exiles History --------- Turn | Location | Event 16 | -11/Scrapyard | Discovered new exit (range 16) 43 | -11/Scrapyard | Entered Materials 255 | -10/Materials | Discovered new exit (range 8) 267 | -10/Materials | Entered Mines 275 | -10/Mines | Learned Materials stockpile data 318 | -10/Mines | Build established: Mutant 889 | -10/Mines | Discovered new exit (range 9) 907 | -10/Mines | Entered Materials 907 | -9/Materials | Evolved 2 slots: Utility x1, Weapon x1 1178 | -9/Materials | Discovered new exit (range 16) 1256 | -9/Materials | Identified exit to Storage 1289 | -9/Materials | Discovered new exit (range 7) 1298 | -9/Materials | Identified exit to Mines 1300 | -9/Materials | Entered Mines 1472 | -9/Mines | A Derelict revealed a hidden shortcut to a safe place 1475 | -9/Mines | Identified exit to Zion 1610 | -9/Mines | Learned location of Storage (-9) 1611 | -9/Mines | Discovered new exit (range 3) 1617 | -9/Mines | Identified exit to Materials 1626 | -9/Mines | Build established: Scavenger-Gunner 1802 | -9/Mines | Assembled infested the area 1806 | -9/Mines | Discovered exit to Materials (range 11) 2012 | -9/Mines | Lost 4 parts (1n3w) 2256 | -9/Mines | Learned location of Recycling (-9) 2285 | -9/Mines | Met a Derelict who couldn't figure out how to use a Trap Extractor 2421 | -9/Mines | Core integrity fell below 50% 2444 | -9/Mines | Joined a pair of Derelicts in attacking an 0b10 outpost 2500 | -9/Mines | Deemed a non-threat by the Exiles lab entrance 2501 | -9/Mines | Discovered new exit (range 5) 2506 | -9/Mines | Entered Exiles 2532 | -9/Exiles | Met 8R-AWN 2557 | -9/Exiles | Met EX-HEX 2594 | -9/Exiles | Met EX-BIN 2606 | -9/Exiles | Aligned with FarCom system 2607 | -9/Exiles | Given EX-Vault access code 2644 | -9/Exiles | Build established: Scavenger-Mutant 2645 | -9/Exiles | Opened EX-Vault 2656 | -9/Exiles | Found Potential Leg 2659 | -9/Exiles | Found Potential Leg 2665 | -9/Exiles | Found YOLO Cannon 2695 | -9/Exiles | Warned to stay clear of 0b10 Research branches 2751 | -9/Exiles | Met EX-DEC 2855 | -9/Exiles | Attacked by the Exiles 2899 | -9/Exiles | Core integrity fell below 20% 2911 | -9/Exiles | Destroyed by 8R-AWN with 8R-AWN's Boregun Last Messages --------------- 02901_ HV Slug penetrates Wall. 02901_ HV Slug penetrates Earth. 02901_ 8R-AWN suffers critical hit. 02901_ Slug penetrates as-47824. 02901_ as-47824 destroyed. 02901_ as-05827 knocked back. 02904_ Penetrated by HV Slug. 02904_ Lgt. Ion Engine destroyed. 02904_ HV Slug penetrates Wall. 02904_ Penetrated by HV Slug. 02904_ HV Slug penetrates Wall. 02904_ Slug penetrates Wall. 02907_ VTHUGL G%PI|LKRR>IRT